[Event "Titled Tuesday Blitz July 26 Early 2022"]
[White "Mardov, Dimitar"]
[Black "Andreikin, Dmitry"]
[WhiteFideId "30919495"]
[BlackFideId "4158814"]
[WhiteElo "2185"]
[BlackElo "2736"]
[Result "1-0"]
[Round "08"]
[TimeControl "180+1"]
[Date "2022.07.26"]
[WhiteClock "0:00:26"]
[BlackClock "0:00:13"]

1. e4 {[%clk 0:03:00]}  c5 {[%clk 0:02:59]} 2. Nf3 {[%clk 0:02:59]}  e6 {[%clk 0:03:00]} 3. d4 {[%clk 0:02:59]}  cxd4 {[%clk 0:03:01]} 4. Nxd4 {[%clk 0:03:00]}  Nc6 {[%clk 0:03:01]} 5. Nc3 {[%clk 0:02:56]}  a6 {[%clk 0:03:01]} 6. f4 {[%clk 0:02:56]}  Nxd4 {[%clk 0:03:00]} 7. Qxd4 {[%clk 0:02:56]}  b5 {[%clk 0:03:01]} 8. a3 {[%clk 0:02:50]}  Bb7 {[%clk 0:03:01]} 9. Be3 {[%clk 0:02:50]}  Rc8 {[%clk 0:03:01]} 10. O-O-O {[%clk 0:02:44]}  Nf6 {[%clk 0:02:57]} 11. e5 {[%clk 0:02:42]}  Ng4 {[%clk 0:02:42]} 12. Bg1 {[%clk 0:02:33]}  Bc5 {[%clk 0:02:42]} 13. Qd2 {[%clk 0:02:33]}  O-O {[%clk 0:02:38]} 14. Bxc5 {[%clk 0:02:30]}  Rxc5 {[%clk 0:02:38]} 15. h3 {[%clk 0:02:22]}  Nh6 {[%clk 0:02:31]} 16. Bd3 {[%clk 0:02:02]}  f5 {[%clk 0:02:20]} 17. exf6 {[%clk 0:01:51]}  Qxf6 {[%clk 0:02:19]} 18. Rhf1 {[%clk 0:01:46]}  Rxc3 {[%clk 0:02:09]} 19. bxc3 {[%clk 0:01:31]}  Rc8 {[%clk 0:02:09]} 20. g4 {[%clk 0:01:30]}  Nf7 {[%clk 0:02:04]} 21. g5 {[%clk 0:01:11]}  Qe7 {[%clk 0:01:40]} 22. Kb2 {[%clk 0:01:07]}  Bd5 {[%clk 0:01:40]} 23. f5 {[%clk 0:00:46]}  Qxg5 {[%clk 0:01:40]} 24. fxe6 {[%clk 0:00:40]}  dxe6 {[%clk 0:01:38]} 25. Bxh7+ {[%clk 0:00:34]}  Kxh7 {[%clk 0:01:34]} 26. Rxf7 {[%clk 0:00:35]}  Qxd2 {[%clk 0:01:20]} 27. Rxd2 {[%clk 0:00:34]}  Kg6 {[%clk 0:01:19]} 28. Ra7 {[%clk 0:00:32]}  Rc6 {[%clk 0:01:18]} 29. Rd4 {[%clk 0:00:31]}  Bf3 {[%clk 0:01:04]} 30. Rf4 {[%clk 0:00:30]}  Bh5 {[%clk 0:01:02]} 31. Rff7 {[%clk 0:00:30]}  e5 {[%clk 0:00:57]} 32. Rxg7+ {[%clk 0:00:30]}  Kf6 {[%clk 0:00:57]} 33. Rgc7 {[%clk 0:00:27]}  Re6 {[%clk 0:00:54]} 34. Kc1 {[%clk 0:00:26]}  e4 {[%clk 0:00:53]} 35. Kd2 {[%clk 0:00:27]}  e3+ {[%clk 0:00:51]} 36. Ke1 {[%clk 0:00:28]}  e2 {[%clk 0:00:35]} 37. Rd7 {[%clk 0:00:27]}  Kg5 {[%clk 0:00:29]} 38. Rd5+ {[%clk 0:00:27]}  Kg6 {[%clk 0:00:27]} 39. Rad7 {[%clk 0:00:27]}  Re3 {[%clk 0:00:11]} 40. R7d6+ {[%clk 0:00:27]}  Kf7 {[%clk 0:00:12]} 41. Rxh5 {[%clk 0:00:27]}  Rxc3 {[%clk 0:00:13]} 42. Rxa6 {[%clk 0:00:25]}  Rxc2 {[%clk 0:00:12]} 43. Re5 {[%clk 0:00:25]}  Rc3 {[%clk 0:00:12]} 44. Kxe2 {[%clk 0:00:25]}  Rxh3 {[%clk 0:00:13]} 45. Rxb5 {[%clk 0:00:26]} 1-0


[Site "https://www.chess.com"]

[Event "Titled Tuesday Blitz July 26 Early 2022"]
[White "Melikyan, Gnel"]
[Black "Skliarov, Viktor"]
[WhiteFideId "54109990"]
[BlackFideId "14106736"]
[WhiteElo "1772"]
[BlackElo "2257"]
[Result "0-1"]
[Round "08"]
[TimeControl "180+1"]
[Date "2022.07.26"]
[WhiteClock "0:00:01"]
[BlackClock "0:00:07"]

1. e4 {[%clk 0:03:00]}  c5 {[%clk 0:02:58]} 2. Nf3 {[%clk 0:03:00]}  Nc6 {[%clk 0:02:58]} 3. Bb5 {[%clk 0:02:59]}  e6 {[%clk 0:02:58]} 4. O-O {[%clk 0:02:59]}  Nge7 {[%clk 0:02:58]} 5. Re1 {[%clk 0:02:59]}  Nd4 {[%clk 0:02:58]} 6. Nxd4 {[%clk 0:02:58]}  cxd4 {[%clk 0:02:59]} 7. c3 {[%clk 0:02:58]}  a6 {[%clk 0:02:59]} 8. Bf1 {[%clk 0:02:53]}  Nc6 {[%clk 0:02:49]} 9. d3 {[%clk 0:02:45]}  Be7 {[%clk 0:02:48]} 10. Nd2 {[%clk 0:02:44]}  O-O {[%clk 0:02:47]} 11. Nf3 {[%clk 0:02:44]}  dxc3 {[%clk 0:02:44]} 12. bxc3 {[%clk 0:02:43]}  d5 {[%clk 0:02:44]} 13. exd5 {[%clk 0:02:40]}  exd5 {[%clk 0:02:22]} 14. h3 {[%clk 0:02:22]}  Bf6 {[%clk 0:01:51]} 15. d4 {[%clk 0:02:19]}  Bf5 {[%clk 0:01:50]} 16. Qb3 {[%clk 0:02:09]}  Na5 {[%clk 0:01:41]} 17. Qb4 {[%clk 0:02:00]}  Qc7 {[%clk 0:01:18]} 18. a4 {[%clk 0:01:31]}  Rfe8 {[%clk 0:01:13]} 19. Ba3 {[%clk 0:01:18]}  h6 {[%clk 0:01:04]} 20. Ne5 {[%clk 0:01:07]}  Rac8 {[%clk 0:00:36]} 21. Rac1 {[%clk 0:00:49]}  Nc6 {[%clk 0:00:36]} 22. Nxc6 {[%clk 0:00:39]}  Qxc6 {[%clk 0:00:36]} 23. Rxe8+ {[%clk 0:00:38]}  Rxe8 {[%clk 0:00:35]} 24. c4 {[%clk 0:00:36]}  Bxd4 {[%clk 0:00:27]} 25. cxd5 {[%clk 0:00:34]}  Qxd5 {[%clk 0:00:27]} 26. Bc4 {[%clk 0:00:31]}  Qe5 {[%clk 0:00:18]} 27. Qxb7 {[%clk 0:00:21]}  Be6 {[%clk 0:00:18]} 28. Bxe6 {[%clk 0:00:16]}  Rxe6 {[%clk 0:00:17]} 29. Qc8+ {[%clk 0:00:14]}  Kh7 {[%clk 0:00:16]} 30. Qc2+ {[%clk 0:00:14]}  g6 {[%clk 0:00:16]} 31. Bc5 {[%clk 0:00:11]}  Rc6 {[%clk 0:00:13]} 32. Qb3 {[%clk 0:00:05]}  Qf4 {[%clk 0:00:09]} 33. Rc4 {[%clk 0:00:01]}  Rxc5 {[%clk 0:00:08]} 34. Rxd4 {[%clk 0:00:01]}  Rc1+ {[%clk 0:00:07]} 0-1


[Site "https://www.chess.com"]

[Event "Titled Tuesday Blitz July 26 Early 2022"]
[White "Nakamura, Hikaru"]
[Black "Shimanov, Aleksandr"]
[WhiteFideId "2016192"]
[BlackFideId "4198603"]
[WhiteElo "2850"]
[BlackElo "2605"]
[Result "1-0"]
[Round "08"]
[TimeControl "180+1"]
[Date "2022.07.26"]
[WhiteClock "0:00:18"]
[BlackClock "0:00:02"]

1. g3 {[%clk 0:03:00]}  d5 {[%clk 0:02:58]} 2. Bg2 {[%clk 0:03:01]}  Nf6 {[%clk 0:02:56]} 3. d3 {[%clk 0:03:02]}  e5 {[%clk 0:02:52]} 4. c4 {[%clk 0:03:01]}  c6 {[%clk 0:02:48]} 5. cxd5 {[%clk 0:02:59]}  cxd5 {[%clk 0:02:48]} 6. Bg5 {[%clk 0:02:59]}  Be6 {[%clk 0:02:39]} 7. Nc3 {[%clk 0:02:58]}  Nc6 {[%clk 0:02:26]} 8. Nf3 {[%clk 0:02:58]}  Be7 {[%clk 0:02:24]} 9. O-O {[%clk 0:02:49]}  O-O {[%clk 0:02:24]} 10. a3 {[%clk 0:02:48]}  Rc8 {[%clk 0:02:23]} 11. Rc1 {[%clk 0:02:47]}  d4 {[%clk 0:02:12]} 12. Bxf6 {[%clk 0:02:43]}  Bxf6 {[%clk 0:02:09]} 13. Ne4 {[%clk 0:02:43]}  Be7 {[%clk 0:02:06]} 14. Nc5 {[%clk 0:02:44]}  Bxc5 {[%clk 0:02:02]} 15. Rxc5 {[%clk 0:02:44]}  Qd6 {[%clk 0:01:58]} 16. Rc2 {[%clk 0:02:35]}  Ne7 {[%clk 0:01:46]} 17. Nd2 {[%clk 0:02:26]}  Bd5 {[%clk 0:01:43]} 18. Bxd5 {[%clk 0:01:58]}  Qxd5 {[%clk 0:01:43]} 19. Rxc8 {[%clk 0:01:54]}  Rxc8 {[%clk 0:01:43]} 20. Qa4 {[%clk 0:01:54]}  a6 {[%clk 0:01:39]} 21. Qb4 {[%clk 0:01:52]}  Rc7 {[%clk 0:01:23]} 22. a4 {[%clk 0:01:50]}  h6 {[%clk 0:01:18]} 23. Nc4 {[%clk 0:01:42]}  Nc6 {[%clk 0:01:03]} 24. Qb6 {[%clk 0:01:39]}  Re7 {[%clk 0:01:03]} 25. Nd2 {[%clk 0:01:23]}  f5 {[%clk 0:00:56]} 26. f3 {[%clk 0:01:23]}  Qa5 {[%clk 0:00:38]} 27. Qxa5 {[%clk 0:01:15]}  Nxa5 {[%clk 0:00:39]} 28. b4 {[%clk 0:01:15]}  Nc6 {[%clk 0:00:39]} 29. b5 {[%clk 0:01:16]}  axb5 {[%clk 0:00:39]} 30. axb5 {[%clk 0:01:17]}  Nb4 {[%clk 0:00:39]} 31. Rc1 {[%clk 0:01:00]}  Nd5 {[%clk 0:00:32]} 32. Rc5 {[%clk 0:00:58]}  Nc3 {[%clk 0:00:32]} 33. Kf2 {[%clk 0:00:58]}  Kf7 {[%clk 0:00:26]} 34. b6 {[%clk 0:00:53]}  Kf6 {[%clk 0:00:25]} 35. Rc8 {[%clk 0:00:37]}  Nd5 {[%clk 0:00:10]} 36. Nc4 {[%clk 0:00:35]}  Re6 {[%clk 0:00:11]} 37. Rf8+ {[%clk 0:00:34]}  Kg6 {[%clk 0:00:09]} 38. h4 {[%clk 0:00:30]}  Nxb6 {[%clk 0:00:08]} 39. h5+ {[%clk 0:00:30]}  Kxh5 {[%clk 0:00:07]} 40. Nxb6 {[%clk 0:00:27]}  Rxb6 {[%clk 0:00:08]} 41. Rxf5+ {[%clk 0:00:27]}  Kg6 {[%clk 0:00:08]} 42. Rxe5 {[%clk 0:00:28]}  Rd6 {[%clk 0:00:08]} 43. Rb5 {[%clk 0:00:28]}  b6 {[%clk 0:00:07]} 44. f4 {[%clk 0:00:27]}  Kf6 {[%clk 0:00:08]} 45. Kf3 {[%clk 0:00:27]}  g6 {[%clk 0:00:05]} 46. g4 {[%clk 0:00:28]}  Kf7 {[%clk 0:00:02]} 47. Re5 {[%clk 0:00:19]}  Kf6 {[%clk 0:00:02]} 48. Re8 {[%clk 0:00:19]}  Kf7 {[%clk 0:00:03]} 49. Rb8 {[%clk 0:00:18]}  Kf6 {[%clk 0:00:03]} 50. Rb7 {[%clk 0:00:19]}  Ke6 {[%clk 0:00:03]} 51. Rh7 {[%clk 0:00:18]}  Kf6 {[%clk 0:00:03]} 52. Rxh6 {[%clk 0:00:18]}  Kg7 {[%clk 0:00:01]} 53. Rh1 {[%clk 0:00:16]}  Re6 {[%clk 0:00:02]} 54. Rb1 {[%clk 0:00:16]}  Kf7 {[%clk 0:00:01]} 55. Rb4 {[%clk 0:00:16]}  Rd6 {[%clk 0:00:02]} 56. Ke4 {[%clk 0:00:16]}  Re6+ {[%clk 0:00:02]} 57. Kxd4 {[%clk 0:00:17]}  Rxe2 {[%clk 0:00:02]} 58. Rxb6 {[%clk 0:00:17]}  Rf2 {[%clk 0:00:02]} 59. Ke3 {[%clk 0:00:17]}  Rf1 {[%clk 0:00:02]} 60. g5 {[%clk 0:00:17]}  Kg7 {[%clk 0:00:02]} 61. Rf6 {[%clk 0:00:17]}  Re1+ {[%clk 0:00:02]} 62. Kd4 {[%clk 0:00:17]}  Ra1 {[%clk 0:00:02]} 63. Ke4 {[%clk 0:00:18]}  Re1+ {[%clk 0:00:02]} 64. Kd5 {[%clk 0:00:18]}  Re8 {[%clk 0:00:02]} 65. d4 {[%clk 0:00:18]} 1-0


[Site "https://www.chess.com"]

[Event "Titled Tuesday Blitz July 26 Early 2022"]
[White "Ohanyan, Emin"]
[Black "Ernst, Sipke"]
[WhiteFideId "13312022"]
[BlackFideId "1004689"]
[WhiteElo "1927"]
[BlackElo "2436"]
[Result "1/2-1/2"]
[Round "08"]
[TimeControl "180+1"]
[Date "2022.07.26"]
[WhiteClock "0:00:03"]
[BlackClock "0:00:51"]

1. e4 {[%clk 0:02:51]}  e5 {[%clk 0:02:59]} 2. Nc3 {[%clk 0:02:49]}  Nf6 {[%clk 0:02:58]} 3. Bc4 {[%clk 0:02:50]}  Nc6 {[%clk 0:02:57]} 4. d3 {[%clk 0:02:50]}  Na5 {[%clk 0:02:56]} 5. Bb3 {[%clk 0:02:50]}  Nxb3 {[%clk 0:02:54]} 6. axb3 {[%clk 0:02:51]}  Be7 {[%clk 0:02:53]} 7. f4 {[%clk 0:02:51]}  d6 {[%clk 0:02:54]} 8. Nf3 {[%clk 0:02:52]}  exf4 {[%clk 0:02:48]} 9. Bxf4 {[%clk 0:02:53]}  O-O {[%clk 0:02:47]} 10. O-O {[%clk 0:02:51]}  c6 {[%clk 0:02:47]} 11. Qe1 {[%clk 0:02:51]}  Bg4 {[%clk 0:02:35]} 12. Qg3 {[%clk 0:02:48]}  Qd7 {[%clk 0:02:33]} 13. h3 {[%clk 0:02:43]}  Be6 {[%clk 0:02:33]} 14. Bg5 {[%clk 0:02:36]}  h6 {[%clk 0:02:21]} 15. Bd2 {[%clk 0:02:12]}  Nh5 {[%clk 0:02:19]} 16. Qh2 {[%clk 0:02:07]}  d5 {[%clk 0:02:11]} 17. g4 {[%clk 0:02:01]}  dxe4 {[%clk 0:01:59]} 18. Nxe4 {[%clk 0:01:59]}  Nf6 {[%clk 0:01:59]} 19. Nxf6+ {[%clk 0:01:44]}  Bxf6 {[%clk 0:02:00]} 20. Bc3 {[%clk 0:01:44]}  Bxc3 {[%clk 0:01:53]} 21. bxc3 {[%clk 0:01:45]}  a5 {[%clk 0:01:50]} 22. c4 {[%clk 0:01:40]}  b5 {[%clk 0:01:50]} 23. Qf4 {[%clk 0:01:32]}  a4 {[%clk 0:01:48]} 24. bxa4 {[%clk 0:01:27]}  bxc4 {[%clk 0:01:42]} 25. dxc4 {[%clk 0:01:25]}  Ra5 {[%clk 0:01:41]} 26. Rfd1 {[%clk 0:01:11]}  Qa7+ {[%clk 0:01:41]} 27. Qd4 {[%clk 0:01:10]}  Ra8 {[%clk 0:01:38]} 28. Qxa7 {[%clk 0:01:07]}  R5xa7 {[%clk 0:01:37]} 29. Ne5 {[%clk 0:01:06]}  c5 {[%clk 0:01:35]} 30. Rd6 {[%clk 0:00:55]}  Rxa4 {[%clk 0:01:31]} 31. Rxa4 {[%clk 0:00:56]}  Rxa4 {[%clk 0:01:31]} 32. Rc6 {[%clk 0:00:56]}  Ra3 {[%clk 0:01:28]} 33. Kg2 {[%clk 0:00:38]}  Rc3 {[%clk 0:01:28]} 34. Rxc5 {[%clk 0:00:38]}  Rxc2+ {[%clk 0:01:26]} 35. Kg3 {[%clk 0:00:38]}  Rc3+ {[%clk 0:01:26]} 36. Kh2 {[%clk 0:00:37]}  f6 {[%clk 0:01:26]} 37. Ng6 {[%clk 0:00:34]}  Bxc4 {[%clk 0:01:22]} 38. Kg1 {[%clk 0:00:06]}  Kf7 {[%clk 0:01:17]} 39. Nf4 {[%clk 0:00:05]}  Rc1+ {[%clk 0:01:16]} 40. Kf2 {[%clk 0:00:05]}  Rf1+ {[%clk 0:01:16]} 41. Kg3 {[%clk 0:00:04]}  Bb3 {[%clk 0:01:02]} 42. Rc7+ {[%clk 0:00:05]}  Kg8 {[%clk 0:01:01]} 43. Rc8+ {[%clk 0:00:04]}  Kh7 {[%clk 0:01:00]} 44. Rc7 {[%clk 0:00:05]}  Kg8 {[%clk 0:00:54]} 45. Rc8+ {[%clk 0:00:03]}  Kf7 {[%clk 0:00:53]} 46. Rc7+ {[%clk 0:00:03]}  Kg8 {[%clk 0:00:51]} 1/2-1/2


[Site "https://www.chess.com"]

[Event "Titled Tuesday Blitz July 26 Early 2022"]
[White "Piesik, Piotr"]
[Black "Terletsky, Oleg"]
[WhiteFideId "1136194"]
[BlackFideId "14116774"]
[WhiteElo "2242"]
[BlackElo "1988"]
[Result "1-0"]
[Round "08"]
[TimeControl "180+1"]
[Date "2022.07.27"]
[WhiteClock "0:00:34"]
[BlackClock "0:00:05"]

1. Nf3 {[%clk 0:02:54]}  Nf6 {[%clk 0:02:55]} 2. g3 {[%clk 0:02:54]}  g6 {[%clk 0:02:54]} 3. Bg2 {[%clk 0:02:55]}  Bg7 {[%clk 0:02:55]} 4. O-O {[%clk 0:02:56]}  O-O {[%clk 0:02:56]} 5. d4 {[%clk 0:02:56]}  d6 {[%clk 0:02:55]} 6. Nbd2 {[%clk 0:02:56]}  Nbd7 {[%clk 0:02:54]} 7. e4 {[%clk 0:02:56]}  e5 {[%clk 0:02:54]} 8. dxe5 {[%clk 0:02:57]}  dxe5 {[%clk 0:02:54]} 9. Qe2 {[%clk 0:02:57]}  c6 {[%clk 0:02:53]} 10. a4 {[%clk 0:02:57]}  a5 {[%clk 0:02:52]} 11. b3 {[%clk 0:02:57]}  Re8 {[%clk 0:02:49]} 12. Bb2 {[%clk 0:02:57]}  Qc7 {[%clk 0:02:31]} 13. Rfd1 {[%clk 0:02:56]}  Nc5 {[%clk 0:02:23]} 14. Ne1 {[%clk 0:02:53]}  Bg4 {[%clk 0:02:17]} 15. f3 {[%clk 0:02:52]}  Be6 {[%clk 0:02:14]} 16. Nc4 {[%clk 0:02:51]}  Nfd7 {[%clk 0:02:09]} 17. Bf1 {[%clk 0:02:47]}  Bf8 {[%clk 0:01:46]} 18. Kh1 {[%clk 0:02:38]}  Red8 {[%clk 0:01:38]} 19. Qf2 {[%clk 0:02:36]}  f6 {[%clk 0:01:33]} 20. Ne3 {[%clk 0:02:36]}  Bf7 {[%clk 0:01:27]} 21. Bc4 {[%clk 0:02:34]}  Ne6 {[%clk 0:01:22]} 22. Bxe6 {[%clk 0:02:30]}  Bxe6 {[%clk 0:01:20]} 23. Nd3 {[%clk 0:02:30]}  Nc5 {[%clk 0:01:17]} 24. Nxc5 {[%clk 0:02:27]}  Bxc5 {[%clk 0:01:18]} 25. Qe2 {[%clk 0:02:27]}  Rxd1+ {[%clk 0:01:12]} 26. Rxd1 {[%clk 0:02:26]}  Rd8 {[%clk 0:01:13]} 27. Rxd8+ {[%clk 0:02:24]}  Qxd8 {[%clk 0:01:13]} 28. Nc4 {[%clk 0:02:24]}  Bh3 {[%clk 0:01:07]} 29. Bc3 {[%clk 0:02:18]}  b5 {[%clk 0:00:57]} 30. Qd2 {[%clk 0:02:07]}  Qxd2 {[%clk 0:00:52]} 31. Nxd2 {[%clk 0:02:06]}  b4 {[%clk 0:00:38]} 32. Bb2 {[%clk 0:02:06]}  Be6 {[%clk 0:00:34]} 33. Kg2 {[%clk 0:02:06]}  Be3 {[%clk 0:00:32]} 34. Nf1 {[%clk 0:02:05]}  Bc5 {[%clk 0:00:28]} 35. Bc1 {[%clk 0:02:04]}  Bd4 {[%clk 0:00:26]} 36. Be3 {[%clk 0:02:03]}  c5 {[%clk 0:00:25]} 37. Bxd4 {[%clk 0:01:58]}  exd4 {[%clk 0:00:24]} 38. Nd2 {[%clk 0:01:58]}  Kf7 {[%clk 0:00:19]} 39. Kf2 {[%clk 0:01:58]}  Ke7 {[%clk 0:00:20]} 40. Ke2 {[%clk 0:01:58]}  Kd6 {[%clk 0:00:16]} 41. Kd3 {[%clk 0:01:58]}  Bc8 {[%clk 0:00:14]} 42. Nc4+ {[%clk 0:01:57]}  Kc7 {[%clk 0:00:14]} 43. Nxa5 {[%clk 0:01:57]}  Ba6+ {[%clk 0:00:14]} 44. Nc4 {[%clk 0:01:57]}  Kc6 {[%clk 0:00:13]} 45. f4 {[%clk 0:01:55]}  h5 {[%clk 0:00:12]} 46. h4 {[%clk 0:01:53]}  f5 {[%clk 0:00:09]} 47. e5 {[%clk 0:01:46]}  Kd5 {[%clk 0:00:09]} 48. Kd2 {[%clk 0:01:44]}  Ke4 {[%clk 0:00:08]} 49. Ke2 {[%clk 0:01:44]}  Kd5 {[%clk 0:00:08]} 50. Kf3 {[%clk 0:01:41]}  Bb7 {[%clk 0:00:07]} 51. Nd6 {[%clk 0:01:37]}  Ba6 {[%clk 0:00:06]} 52. Ne8 {[%clk 0:01:32]}  d3 {[%clk 0:00:04]} 53. cxd3 {[%clk 0:01:28]}  Bxd3 {[%clk 0:00:05]} 54. Ke3 {[%clk 0:00:52]}  Bc2 {[%clk 0:00:05]} 55. a5 {[%clk 0:00:52]}  Bxb3 {[%clk 0:00:05]} 56. a6 {[%clk 0:00:52]}  Ba4 {[%clk 0:00:06]} 57. a7 {[%clk 0:00:47]}  Bc6 {[%clk 0:00:06]} 58. Nc7+ {[%clk 0:00:42]}  Kc4 {[%clk 0:00:06]} 59. a8=Q {[%clk 0:00:40]}  Bxa8 {[%clk 0:00:05]} 60. Nxa8 {[%clk 0:00:41]}  b3 {[%clk 0:00:06]} 61. Kd2 {[%clk 0:00:37]}  Kb4 {[%clk 0:00:06]} 62. Nb6 {[%clk 0:00:34]}  c4 {[%clk 0:00:06]} 63. Nxc4 {[%clk 0:00:33]}  Kxc4 {[%clk 0:00:05]} 64. e6 {[%clk 0:00:34]}  Kb4 {[%clk 0:00:03]} 65. Kc1 {[%clk 0:00:33]}  Ka3 {[%clk 0:00:04]} 66. Kb1 {[%clk 0:00:33]}  b2 {[%clk 0:00:04]} 67. e7 {[%clk 0:00:34]}  Kb3 {[%clk 0:00:04]} 68. e8=Q {[%clk 0:00:34]}  Kc3 {[%clk 0:00:05]} 69. Qd7 {[%clk 0:00:34]} 1-0


[Site "https://www.chess.com"]

[Event "Titled Tuesday Blitz July 26 Early 2022"]
[White "Pranav, V"]
[Black "Goltsev, Dmitry"]
[WhiteFideId "25060783"]
[BlackFideId "24176710"]
[WhiteElo "2380"]
[BlackElo "2258"]
[Result "0-1"]
[Round "08"]
[TimeControl "180+1"]
[Date "2022.07.26"]
[WhiteClock "0:00:12"]
[BlackClock "0:00:07"]

1. d4 {[%clk 0:03:00]}  Nf6 {[%clk 0:02:59]} 2. Bg5 {[%clk 0:03:00]}  e6 {[%clk 0:02:59]} 3. Nc3 {[%clk 0:02:58]}  Be7 {[%clk 0:02:59]} 4. e4 {[%clk 0:02:55]}  d5 {[%clk 0:02:59]} 5. e5 {[%clk 0:02:55]}  Nfd7 {[%clk 0:02:56]} 6. Bxe7 {[%clk 0:02:56]}  Qxe7 {[%clk 0:02:57]} 7. f4 {[%clk 0:02:56]}  a6 {[%clk 0:02:57]} 8. Nf3 {[%clk 0:02:57]}  c5 {[%clk 0:02:58]} 9. Qd2 {[%clk 0:02:58]}  Nc6 {[%clk 0:02:57]} 10. Be2 {[%clk 0:02:58]}  cxd4 {[%clk 0:02:56]} 11. Nxd4 {[%clk 0:02:59]}  Nc5 {[%clk 0:02:56]} 12. O-O {[%clk 0:02:58]}  Bd7 {[%clk 0:02:54]} 13. Rad1 {[%clk 0:02:58]}  g6 {[%clk 0:02:53]} 14. Qe3 {[%clk 0:02:58]}  Nxd4 {[%clk 0:02:52]} 15. Rxd4 {[%clk 0:02:59]}  Rc8 {[%clk 0:02:52]} 16. Rfd1 {[%clk 0:02:47]}  h5 {[%clk 0:02:50]} 17. Rxd5 {[%clk 0:02:32]}  exd5 {[%clk 0:02:32]} 18. Nxd5 {[%clk 0:02:33]}  Qe6 {[%clk 0:02:29]} 19. Nf6+ {[%clk 0:02:32]}  Kf8 {[%clk 0:02:20]} 20. b4 {[%clk 0:02:28]}  Bb5 {[%clk 0:01:35]} 21. Bxb5 {[%clk 0:02:09]}  axb5 {[%clk 0:01:35]} 22. bxc5 {[%clk 0:02:09]}  Kg7 {[%clk 0:01:32]} 23. h4 {[%clk 0:01:47]}  Qxa2 {[%clk 0:01:30]} 24. Rd7 {[%clk 0:01:36]}  Rhd8 {[%clk 0:01:24]} 25. Qd4 {[%clk 0:01:23]}  Rxd7 {[%clk 0:01:21]} 26. Qxd7 {[%clk 0:01:24]}  Qe6 {[%clk 0:01:13]} 27. Qd4 {[%clk 0:01:07]}  Qc4 {[%clk 0:01:07]} 28. Qd7 {[%clk 0:01:05]}  Qxc5+ {[%clk 0:01:00]} 29. Kh2 {[%clk 0:01:05]}  Qc4 {[%clk 0:00:47]} 30. Nd5 {[%clk 0:00:53]}  Rc6 {[%clk 0:00:40]} 31. Qd8 {[%clk 0:00:41]}  Re6 {[%clk 0:00:29]} 32. Kh3 {[%clk 0:00:35]}  Qxc2 {[%clk 0:00:24]} 33. Nc7 {[%clk 0:00:33]}  Qf5+ {[%clk 0:00:17]} 34. Kg3 {[%clk 0:00:33]}  Qg4+ {[%clk 0:00:17]} 35. Kh2 {[%clk 0:00:26]}  Qxf4+ {[%clk 0:00:18]} 36. g3 {[%clk 0:00:26]}  Qxe5 {[%clk 0:00:14]} 37. Nxe6+ {[%clk 0:00:21]}  Qxe6 {[%clk 0:00:15]} 38. Qd4+ {[%clk 0:00:21]}  Qf6 {[%clk 0:00:13]} 39. Qc5 {[%clk 0:00:21]}  Qb2+ {[%clk 0:00:12]} 40. Kh3 {[%clk 0:00:20]}  b4 {[%clk 0:00:13]} 41. Qb6 {[%clk 0:00:15]}  b3 {[%clk 0:00:13]} 42. g4 {[%clk 0:00:16]}  hxg4+ {[%clk 0:00:12]} 43. Kxg4 {[%clk 0:00:15]}  Qg2+ {[%clk 0:00:11]} 44. Kf4 {[%clk 0:00:15]}  Qd2+ {[%clk 0:00:11]} 45. Kg4 {[%clk 0:00:15]}  b2 {[%clk 0:00:12]} 46. h5 {[%clk 0:00:14]}  Qd1+ {[%clk 0:00:11]} 47. Kg5 {[%clk 0:00:15]}  Qxh5+ {[%clk 0:00:08]} 48. Kf4 {[%clk 0:00:15]}  Qf5+ {[%clk 0:00:09]} 49. Kg3 {[%clk 0:00:14]}  b1=Q {[%clk 0:00:10]} 50. Qd4+ {[%clk 0:00:14]}  Qf6 {[%clk 0:00:09]} 51. Qd3 {[%clk 0:00:12]}  Qxd3+ {[%clk 0:00:08]} 52. Kg4 {[%clk 0:00:12]}  Qdf3# {[%clk 0:00:07]} 0-1


[Site "https://www.chess.com"]